fUST/lending_fUST_20250619
["ID","MTS","AMOUNT","RATE_DAILY","PERIOD"]
[366527389,1750305045339,-539.85,0.00022465,6]
[366527390,1750305045349,-460.0,0.00022465,6]
[366527391,1750305045360,-2592.82,0.00022465,6]
[366527392,1750305045369,-2543.22,0.00022465,6]
[366527393,1750305045379,-4759.51,0.00022465,6]
[366527394,1750305045389,-460.0,0.00022465,6]
[366527395,1750305045398,-460.0,0.00022465,6]
[366527396,1750305045408,-706.94603359,0.00022521,2]
[366527397,1750305045417,-204.08141065,0.00022555,2]
[366527398,1750305045426,-386.52693628,0.00022653,2]
[366527399,1750305045437,-309.776659,0.00022685,2]
[366527400,1750305045446,-629.66,0.00022711,2]
[366527401,1750305045456,-408.24012222,0.00022739,6]
[366527402,1750305045466,-460.0,0.00022739,6]
[366527403,1750305045475,-460.0,0.00022739,6]
[366527404,1750305045485,-460.0,0.00022739,6]
[366527405,1750305045495,-2035.86,0.00022739,6]
[366527406,1750305045504,-460.0,0.00022739,6]
[366527407,1750305045513,-528.98,0.00022739,6]
[366527408,1750305045523,-460.0,0.00022739,6]
[366527409,1750305045532,-460.0,0.00022739,6]
[366527410,1750305045542,-460.0,0.00022739,6]
[366527411,1750305045552,-460.0,0.00022739,6]
[366527412,1750305045562,-460.0,0.00022739,6]
[366527413,1750305045571,-460.0,0.00022739,6]
[366527414,1750305045586,-2524.06,0.00022739,6]
[366527415,1750305045595,-460.0,0.00022739,6]
[366527416,1750305045605,-460.0,0.00022739,6]
[366527417,1750305045614,-588.9,0.00022739,6]
[366527418,1750305045623,-560.97,0.00022739,6]
[366527419,1750305045632,-1696.59,0.00022739,6]
[366527420,1750305045642,-2250.32,0.00022739,6]
[366527421,1750305045651,-463.49,0.00022739,6]
[366527422,1750305045660,-460.0,0.00022739,6]
[366527423,1750305045670,-2046.75,0.00022739,6]
[366527424,1750305045679,-236.5559065,0.00022739,2]
[366527425,1750305045689,-1053.61,0.00022739,6]
[366527426,1750305045698,-460.0,0.00022739,6]
[366527427,1750305045708,-847.09,0.00022739,6]
[366527428,1750305045717,-1347.18,0.00022739,6]
[366527429,1750305045727,-693.36,0.00022739,6]
[366527430,1750305045737,-1773.55,0.00022739,6]
[366527431,1750305045747,-460.0,0.00022739,6]
[366527432,1750305045763,-460.0,0.00022739,6]
[366527433,1750305045772,-460.0,0.00022739,6]
[366527434,1750305045782,-460.0,0.00022739,6]
[366527435,1750305045792,-460.0,0.00022739,6]
[366527436,1750305045801,-460.0,0.00022739,6]
[366527437,1750305045811,-460.0,0.00022739,6]
[366527438,1750305045820,-460.0,0.00022739,6]
[366527439,1750305045830,-300.0,0.00022739,2]
[366527440,1750305045839,-460.0,0.00022739,6]
[366527441,1750305045849,-460.0,0.00022739,6]
[366527442,1750305045859,-460.0,0.00022739,6]
[366527443,1750305045868,-460.0,0.00022739,6]
[366527444,1750305045877,-460.0,0.00022739,6]
[366527445,1750305045887,-931.97,0.00022739,6]
[366527446,1750305045896,-819.59,0.00022739,6]
[366527447,1750305045905,-460.0,0.00022739,6]
[366527448,1750305045915,-1291.08,0.00022739,6]
[366527449,1750305045927,-548.15,0.00022739,6]
[366527450,1750305045937,-1151.13,0.00022739,6]
[366527451,1750305045947,-460.0,0.00022739,6]
[366527452,1750305045957,-460.0,0.00022739,6]
[366527453,1750305045966,-460.0,0.00022739,6]
[366527454,1750305045975,-460.0,0.00022739,6]
[366527455,1750305045985,-420.0,0.00022739,6]
[366527456,1750305045995,-460.0,0.00022739,6]
[366527457,1750305046004,-460.0,0.00022739,6]
[366527458,1750305046013,-1783.82,0.00022739,6]
[366527459,1750305046023,-460.0,0.00022739,6]
[366527460,1750305046032,-460.0,0.00022739,6]
[366527461,1750305046041,-460.0,0.00022739,6]
[366527462,1750305046052,-2916.3,0.00022739,6]
[366527463,1750305046061,-460.0,0.00022739,6]
[366527464,1750305046072,-766.7,0.00022739,6]
[366527465,1750305046081,-516.39,0.00022739,6]
[366527466,1750305046091,-460.0,0.00022739,6]
[366527467,1750305046101,-460.0,0.00022739,6]
[366527468,1750305046111,-591.1,0.00022739,6]
[366527469,1750305046121,-539.85,0.00022739,6]
[366527470,1750305046130,-460.0,0.00022739,6]
[366527471,1750305046140,-2592.82,0.00022739,6]
[366527472,1750305046149,-2543.22,0.00022739,6]
[366527473,1750305046190,-4759.51,0.00022739,6]
[366527474,1750305046199,-460.0,0.00022739,6]
[366527475,1750305046208,-958.73565812,0.00022749,2]
[366527476,1750305046218,-160.0,0.00022807,2]
[366527477,1750305046227,-230.0259007,0.00022807,2]
[366527478,1750305046236,-213.47708638,0.00022807,2]
[366527479,1750305046245,-424.78309573,0.00022807,2]
[366527480,1750305046254,-845.93775772,0.00022807,2]
[366527481,1750305046264,-836.1357872,0.00022807,2]
[366527482,1750305046273,-160.0,0.00022807,2]
[366527483,1750305046283,-160.0,0.00022816,2]
[366527484,1750305046292,-160.0,0.00022816,2]
[366527485,1750305046301,-12544.68530873,0.00022816,2]
[366527486,1750305046310,-386.52693628,0.00022864,2]
[366527487,1750305046320,-487.07405773,0.00022878,2]
[366527488,1750305046329,-501.76440784,0.00022878,2]
[366527489,1750305046338,-500.0,0.00022878,2]
[366527490,1750305046348,-500.0,0.00022878,2]
[366527491,1750305046358,-202.42702831,0.00022878,2]
[366527492,1750305046368,-500.0,0.00022878,2]
[366527493,1750305046377,-501.59626407,0.00022878,2]
[366527494,1750305046386,-500.0,0.00022878,2]
[366527495,1750305046396,-500.0,0.00022878,2]
[366527496,1750305046405,-262.320583,0.0002289,8]
[366527497,1750305046415,-163.70499444,0.00023,2]
[366527498,1750305046424,-460.0,0.00023013,6]
[366527499,1750305046433,-460.0,0.00023013,6]
[366527500,1750305046443,-460.0,0.00023013,6]
[366527501,1750305046453,-2035.86,0.00023013,6]
[366527502,1750305046462,-199.92202262,0.00023013,6]
[366527503,1750305046472,-528.98,0.00023013,6]
[366527504,1750305046481,-460.0,0.00023013,6]
[366527505,1750305046491,-460.0,0.00023013,6]
[366527506,1750305046500,-460.0,0.00023013,6]
[366527507,1750305046509,-458.84595878,0.00023013,6]
[366527508,1750305046520,-460.0,0.00023013,6]
[366527509,1750305046529,-2524.06,0.00023013,6]
[366527510,1750305046538,-190.47537944,0.00023013,6]
[366527511,1750305046548,-588.9,0.00023013,6]
[366527512,1750305046557,-560.97,0.00023013,6]
[366527513,1750305046567,-1696.59,0.00023013,6]
[366527514,1750305046576,-2250.32,0.00023013,6]
[366527515,1750305046587,-463.49,0.00023013,6]
[366527516,1750305046597,-460.0,0.00023013,6]
[366527517,1750305046606,-2046.75,0.00023013,6]
[366527518,1750305046616,-1053.61,0.00023013,6]
[366527519,1750305046625,-460.0,0.00023013,6]
[366527520,1750305046634,-847.09,0.00023013,6]
[366527521,1750305046643,-1347.18,0.00023013,6]
[366527522,1750305046653,-693.36,0.00023013,6]
[366527523,1750305046662,-1773.55,0.00023013,6]
[366527524,1750305046671,-460.0,0.00023013,6]
[366527525,1750305046681,-246.40236497,0.00023013,6]
[366527526,1750305046690,-460.0,0.00023013,6]
[366527527,1750305046699,-460.0,0.00023013,6]
[366527528,1750305046709,-460.0,0.00023013,6]
[366527529,1750305046719,-460.0,0.00023013,6]
[366527530,1750305046728,-460.0,0.00023013,6]
[366527531,1750305046738,-300.0,0.00023013,2]
[366527532,1750305046747,-460.0,0.00023013,6]
[366527533,1750305046756,-191.62441264,0.00023013,6]
[366527534,1750305046765,-460.0,0.00023013,6]
[366527535,1750305046775,-460.0,0.00023013,6]
[366527536,1750305046784,-460.0,0.00023013,6]
[366527537,1750305046793,-931.97,0.00023013,6]
[366527538,1750305046803,-819.59,0.00023013,6]
[366527539,1750305046813,-460.0,0.00023013,6]
[366527540,1750305046823,-1291.08,0.00023013,6]
[366527541,1750305046833,-548.15,0.00023013,6]
[366527542,1750305046843,-1151.13,0.00023013,6]
[366527543,1750305046852,-460.0,0.00023013,6]
[366527544,1750305046862,-465.00257527,0.00023013,6]
[366527545,1750305046873,-460.0,0.00023013,6]
[366527546,1750305046882,-460.0,0.00023013,6]
[366527547,1750305046892,-460.0,0.00023013,6]
[366527548,1750305046902,-1783.82,0.00023013,6]
[366527549,1750305046911,-460.0,0.00023013,6]
[366527550,1750305046921,-460.0,0.00023013,6]
[366527551,1750305046930,-460.0,0.00023013,6]
[366527552,1750305046940,-2916.3,0.00023013,6]
[366527553,1750305046951,-460.0,0.00023013,6]
[366527554,1750305046961,-766.7,0.00023013,6]
[366527555,1750305046970,-516.39,0.00023013,6]
[366527556,1750305046980,-460.0,0.00023013,6]
[366527557,1750305046990,-460.0,0.00023013,6]
[366527558,1750305047000,-591.1,0.00023013,6]
[366527559,1750305047010,-539.85,0.00023013,6]
[366527560,1750305047020,-460.0,0.00023013,6]
[366527561,1750305047030,-2592.82,0.00023013,6]
[366527562,1750305047039,-2543.22,0.00023013,6]
[366527563,1750305047048,-4759.51,0.00023013,6]
[366527564,1750305047058,-460.0,0.00023013,6]
[366527565,1750305047067,-169.0,0.00023014,7]
[366527566,1750305047077,-386.52693628,0.00023045,2]
[366527567,1750305047086,-243.78552427,0.00023083,2]
[366527568,1750305047095,-958.73565812,0.00023133,2]
[366527569,1750305047105,-663.789138,0.00023233,2]
[366527570,1750305047114,-1219.74,0.00023277,3]
[366527571,1750305047123,-609.88,0.00023277,3]
[366527572,1750305047133,-304.94,0.00023277,3]
[366527573,1750305047142,-592.92,0.00023277,3]
[366527574,1750305047151,-460.0,0.00023287,6]
[366527575,1750305047161,-460.0,0.00023287,6]
[366527576,1750305047170,-460.0,0.00023287,6]
[366527577,1750305047179,-2035.86,0.00023287,6]
[366527578,1750305047189,-528.98,0.00023287,6]
[366527579,1750305047199,-460.0,0.00023287,6]
[366527580,1750305047208,-460.0,0.00023287,6]
[366527581,1750305047217,-460.0,0.00023287,6]
[366527582,1750305047226,-460.0,0.00023287,6]
[366527583,1750305047236,-2524.06,0.00023287,6]
[366527584,1750305047245,-588.9,0.00023287,6]
[366527585,1750305047254,-560.97,0.00023287,6]
[366527586,1750305047263,-1696.59,0.00023287,6]
[366527587,1750305047273,-2250.32,0.00023287,6]
[366527588,1750305047282,-463.49,0.00023287,6]
[366527589,1750305047291,-460.0,0.00023287,6]
[366527590,1750305047301,-2046.75,0.00023287,6]
[366527591,1750305047310,-1053.61,0.00023287,6]
[366527592,1750305047319,-460.0,0.00023287,6]
[366527593,1750305047328,-847.09,0.00023287,6]
[366527594,1750305047338,-1347.18,0.00023287,6]
[366527595,1750305047347,-693.36,0.00023287,6]
[366527596,1750305047356,-1773.55,0.00023287,6]
[366527597,1750305047365,-460.0,0.00023287,6]
[366527598,1750305047374,-460.0,0.00023287,6]
[366527599,1750305047384,-460.0,0.00023287,6]
[366527600,1750305047393,-460.0,0.00023287,6]
[366527601,1750305047403,-460.0,0.00023287,6]
[366527602,1750305047412,-460.0,0.00023287,6]
[366527603,1750305047422,-300.0,0.00023287,2]
[366527604,1750305047431,-460.0,0.00023287,6]
[366527605,1750305047441,-460.0,0.00023287,6]
[366527606,1750305047450,-460.0,0.00023287,6]
[366527607,1750305047461,-931.97,0.00023287,6]
[366527608,1750305047471,-819.59,0.00023287,6]
[366527609,1750305047480,-460.0,0.00023287,6]
[366527610,1750305047489,-1291.08,0.00023287,6]
[366527611,1750305047499,-548.15,0.00023287,6]
[366527612,1750305047508,-1151.13,0.00023287,6]
[366527613,1750305047517,-460.0,0.00023287,6]
[366527614,1750305047526,-460.0,0.00023287,6]
[366527615,1750305047536,-460.0,0.00023287,6]
[366527616,1750305047545,-1783.82,0.00023287,6]
[366527617,1750305047554,-346.90431638,0.00023287,6]
[366527618,1750305047563,-460.0,0.00023287,6]
[366527619,1750305047573,-460.0,0.00023287,6]
[366527620,1750305047586,-2916.3,0.00023287,6]
[366527621,1750305047595,-460.0,0.00023287,6]
[366527622,1750305047605,-766.7,0.00023287,6]
[366527623,1750305047614,-516.39,0.00023287,6]
[366527624,1750305047624,-460.0,0.00023287,6]
[366527625,1750305047635,-519.5051916,0.00023287,6]
[366527626,1750305047645,-591.1,0.00023287,6]
[366527627,1750305047654,-539.85,0.00023287,6]
[366527628,1750305047663,-600.0,0.00023287,6]
[366527629,1750305047673,-2592.82,0.00023287,6]
[366527630,1750305047682,-2543.22,0.00023287,6]
[366527631,1750305047691,-4759.51,0.00023287,6]
[366527632,1750305047701,-460.0,0.00023287,6]
[366527633,1750305047710,-518.41571318,0.00023288,2]
[366527634,1750305047720,-386.52693628,0.00023297,2]
[366527635,1750305047729,-293.40262726,0.00023426,2]
[366527636,1750305047739,-958.73565812,0.00023516,2]
[366527637,1750305047748,-317.7667429,0.00023534,2]
[366527638,1750305047757,-160.0,0.00023546,2]
[366527639,1750305047766,-438.86,0.00023551,3]
[366527640,1750305047776,-460.0,0.00023561,6]
[366527641,1750305047785,-460.0,0.00023561,6]
[366527642,1750305047795,-224.11483354,0.00023561,6]
[366527643,1750305047805,-2035.86,0.00023561,6]
[366527644,1750305047814,-528.98,0.00023561,6]
[366527645,1750305047824,-460.0,0.00023561,6]
[366527646,1750305047833,-392.93324069,0.00023561,6]
[366527647,1750305047845,-486.98815493,0.00023561,6]
[366527648,1750305047855,-460.0,0.00023561,6]
[366527649,1750305047864,-2524.06,0.00023561,6]
[366527650,1750305047874,-588.9,0.00023561,6]
[366527651,1750305047884,-560.97,0.00023561,6]
[366527652,1750305047894,-1696.59,0.00023561,6]
[366527653,1750305047903,-2250.32,0.00023561,6]
[366527654,1750305047913,-463.49,0.00023561,6]
[366527655,1750305047922,-460.0,0.00023561,6]
[366527656,1750305047932,-2046.75,0.00023561,6]
[366527657,1750305047942,-1053.61,0.00023561,6]
[366527658,1750305047951,-460.0,0.00023561,6]
[366527659,1750305047961,-847.09,0.00023561,6]
[366527660,1750305047971,-693.36,0.00023561,6]
[366527661,1750305047981,-1347.18,0.00023561,6]
[366527662,1750305047990,-1773.55,0.00023561,6]
[366527663,1750305047999,-460.0,0.00023561,6]
[366527664,1750305048009,-460.0,0.00023561,6]
[366527665,1750305048018,-460.0,0.00023561,6]
[366527666,1750305048028,-179.15237209,0.00023561,6]
[366527667,1750305048038,-460.0,0.00023561,6]
[366527668,1750305048048,-460.0,0.00023561,6]
[366527669,1750305048058,-300.0,0.00023561,2]
[366527670,1750305048068,-460.0,0.00023561,6]
[366527671,1750305048078,-460.0,0.00023561,6]
[366527672,1750305048088,-460.0,0.00023561,6]
[366527673,1750305048097,-931.97,0.00023561,6]
[366527674,1750305048108,-819.59,0.00023561,6]
[366527675,1750305048118,-460.0,0.00023561,6]
[366527676,1750305048127,-1291.08,0.00023561,6]
[366527677,1750305048138,-548.15,0.00023561,6]
[366527678,1750305048148,-1151.13,0.00023561,6]
[366527679,1750305048158,-460.0,0.00023561,6]
[366527680,1750305048168,-460.0,0.00023561,6]
[366527681,1750305048177,-460.0,0.00023561,6]
[366527682,1750305048187,-1783.82,0.00023561,6]
[366527683,1750305048196,-460.0,0.00023561,6]
[366527684,1750305048205,-460.0,0.00023561,6]
[366527685,1750305048215,-2916.3,0.00023561,6]
[366527686,1750305048225,-766.7,0.00023561,6]
[366527687,1750305048236,-516.39,0.00023561,6]
[366527688,1750305048246,-460.0,0.00023561,6]
[366527689,1750305048256,-591.1,0.00023561,6]
[366527690,1750305048266,-539.85,0.00023561,6]
[366527691,1750305048276,-2592.82,0.00023561,6]
[366527692,1750305048285,-2543.22,0.00023561,6]
[366527693,1750305048295,-4759.51,0.00023561,6]
[366527694,1750305048305,-460.0,0.00023561,6]
[366527695,1750305048315,-734.6,0.00023584,2]
[366527696,1750305048324,-153.0,0.00023588,2]
[366527697,1750305048334,-153.0,0.00023588,2]
[366527698,1750305048344,-153.0,0.00023588,2]
[366527699,1750305048355,-153.0,0.00023588,2]
[366527700,1750305048364,-153.0,0.00023588,2]
[366527701,1750305048374,-153.0,0.00023588,2]
[366527702,1750305048384,-153.0,0.00023588,2]
[366527703,1750305048394,-153.0,0.00023588,2]
[366527704,1750305048404,-153.0,0.00023588,2]
[366527705,1750305048414,-42965.74268316,0.00023597,2]
[366527706,1750305048423,-5348.29030253,0.00023715,2]
[366527707,1750305048433,-208.0,0.00023731,2]
[366527708,1750305048443,-243.78552427,0.00023744,2]
[366527709,1750305048452,-420.0,0.00023807,2]
[366527710,1750305048462,-193.0,0.00023807,2]
[366527711,1750305048471,-303.0,0.00023807,2]
[366527712,1750305048481,-386.5269363,0.00023813,2]
[366527713,1750305048491,-215.0738,0.00023834,2]
[366527714,1750305048500,-477.79837011,0.00023834,6]
[366527715,1750305048509,-151.0,0.00023834,6]
[366527716,1750305048518,-151.0,0.00023834,6]
[366527717,1750305048528,-500.0,0.00023834,6]
[366527718,1750305048537,-151.0,0.00023834,6]
[366527719,1750305048547,-151.0,0.00023834,6]
[366527720,1750305048557,-151.0,0.00023834,6]
[366527721,1750305048567,-151.38447872,0.00023834,6]
[366527722,1750305048578,-151.0,0.00023834,6]
[366527723,1750305048591,-500.0,0.00023834,6]
[366527724,1750305048601,-500.0,0.00023834,6]
[366527725,1750305048611,-500.0,0.00023834,6]
[366527726,1750305048620,-151.0,0.00023834,6]
[366527727,1750305048630,-151.0,0.00023834,6]
[366527728,1750305048639,-201.85470687,0.00023834,6]
[366527729,1750305048649,-159.10757856,0.00023834,6]
[366527730,1750305048659,-151.0,0.00023834,6]
[366527731,1750305048668,-500.0,0.00023834,6]
[366527732,1750305048678,-500.0,0.00023834,6]
[366527733,1750305048687,-151.0,0.00023834,6]
[366527734,1750305048697,-151.0,0.00023834,6]
[366527735,1750305048707,-500.0,0.00023834,6]
[366527736,1750305048716,-151.0591502,0.00023834,6]
[366527737,1750305048726,-226.26621613,0.00023834,6]
[366527738,1750305048735,-271.3972355,0.00023834,6]
[366527739,1750305048745,-151.30315093,0.00023834,6]
[366527740,1750305048754,-151.0,0.00023834,6]
[366527741,1750305048764,-151.1443837,0.00023834,6]
[366527742,1750305048773,-288.05652424,0.00023834,6]
[366527743,1750305048783,-151.84841053,0.00023834,6]
[366527744,1750305048793,-151.71499628,0.00023834,6]
[366527745,1750305048803,-500.0,0.00023834,6]
[366527746,1750305048812,-1466.0,0.00023834,6]
[366527747,1750305048822,-500.0,0.00023834,6]
[366527748,1750305048831,-281.89952691,0.00023834,6]
[366527749,1750305048842,-151.0,0.00023834,6]
[366527750,1750305048851,-500.0,0.00023834,6]
[366527751,1750305048862,-500.0,0.00023834,6]
[366527752,1750305048871,-460.0,0.00023835,6]
[366527753,1750305048881,-460.0,0.00023835,6]
[366527754,1750305048890,-2035.86,0.00023835,6]
[366527755,1750305048900,-528.98,0.00023835,6]
[366527756,1750305048909,-460.0,0.00023835,6]
[366527757,1750305048919,-460.0,0.00023835,6]
[366527758,1750305048930,-2524.06,0.00023835,6]
[366527759,1750305048940,-588.9,0.00023835,6]
[366527760,1750305049058,-560.97,0.00023835,6]
[366527761,1750305049068,-1696.59,0.00023835,6]
[366527762,1750305049077,-2250.32,0.00023835,6]
[366527763,1750305049087,-463.49,0.00023835,6]
[366527764,1750305049096,-460.0,0.00023835,6]
[366527765,1750305049106,-2046.75,0.00023835,6]
[366527766,1750305049115,-1053.61,0.00023835,6]
[366527767,1750305049125,-460.0,0.00023835,6]
[366527768,1750305049134,-847.09,0.00023835,6]
[366527769,1750305049144,-693.36,0.00023835,6]
[366527770,1750305049154,-1347.18,0.00023835,6]
[366527771,1750305049164,-1773.55,0.00023835,6]
[366527772,1750305049173,-460.0,0.00023835,6]
[366527773,1750305049183,-460.0,0.00023835,6]
[366527774,1750305049192,-460.0,0.00023835,6]
[366527775,1750305049201,-460.0,0.00023835,6]
[366527776,1750305049211,-460.0,0.00023835,6]
[366527777,1750305049220,-300.0,0.00023835,2]
[366527778,1750305049229,-460.0,0.00023835,6]
[366527779,1750305049238,-460.0,0.00023835,6]
[366527780,1750305049248,-552.16852101,0.00023835,6]
[366527781,1750305049257,-931.97,0.00023835,6]
[366527782,1750305049266,-819.59,0.00023835,6]
[366527783,1750305049276,-1291.08,0.00023835,6]
[366527784,1750305049285,-548.15,0.00023835,6]
[366527785,1750305049295,-1151.13,0.00023835,6]
[366527786,1750305049304,-460.0,0.00023835,6]
[366527787,1750305049315,-460.0,0.00023835,6]
[366527788,1750305049323,-460.0,0.00023835,6]
[366527789,1750305049333,-1783.82,0.00023835,6]
[366527790,1750305049342,-460.0,0.00023835,6]
[366527791,1750305049352,-460.0,0.00023835,6]
[366527792,1750305049361,-2916.3,0.00023835,6]
[366527793,1750305049370,-766.7,0.00023835,6]
[366527794,1750305049380,-516.39,0.00023835,6]
[366527795,1750305049389,-460.0,0.00023835,6]
[366527796,1750305049398,-591.1,0.00023835,6]
[366527797,1750305049407,-539.85,0.00023835,6]
[366527798,1750305049417,-2592.82,0.00023835,6]
[366527799,1750305049426,-2543.22,0.00023835,6]
[366527800,1750305049435,-4759.51,0.00023835,6]
[366527801,1750305049444,-460.0,0.00023835,6]
[366527802,1750305049453,-151.36940964,0.00023861,6]
[366527803,1750305049462,-152.00030294,0.00023861,6]
[366527804,1750305049471,-517.69663248,0.00023861,6]
[366527805,1750305049480,-151.0,0.00023861,6]
[366527806,1750305049490,-151.0,0.00023861,6]
[366527807,1750305049499,-151.32482003,0.00023861,6]
[366527808,1750305049508,-151.41753838,0.00023861,6]
[366527809,1750305049517,-500.0,0.00023861,6]
[366527810,1750305049526,-500.0,0.00023861,6]
[366527811,1750305049535,-500.0,0.00023861,6]
[366527812,1750305049544,-198.58624684,0.00023861,6]
[366527813,1750305049553,-151.0,0.00023861,6]
[366527814,1750305049562,-151.0,0.00023861,6]
[366527815,1750305049571,-500.0,0.00023861,6]
[366527816,1750305049584,-500.0,0.00023861,6]
[366527817,1750305049593,-214.21196469,0.00023861,6]
[366527818,1750305049602,-151.0,0.00023861,6]
[366527819,1750305049611,-500.0,0.00023861,6]
[366527820,1750305049620,-193.9241166,0.00023861,6]
[366527821,1750305049629,-500.0,0.00023861,6]
[366527822,1750305049637,-1466.0,0.00023861,6]
[366527823,1750305049646,-500.0,0.00023861,6]
[366527824,1750305049655,-151.0,0.00023861,6]
[366527825,1750305049664,-501.23961877,0.00023861,6]
[366527826,1750305049673,-500.0,0.00023861,6]
[366527827,1750305049682,-893.12809125,0.00023882,2]
[366527828,1750305049690,-151.0,0.00023889,6]
[366527829,1750305049699,-198.5405104,0.00023889,6]
[366527830,1750305049708,-500.0,0.00023889,6]
[366527831,1750305049717,-500.0,0.00023889,6]
[366527832,1750305049726,-500.0,0.00023889,6]
[366527833,1750305049735,-193.70892126,0.00023889,6]
[366527834,1750305049744,-267.57688465,0.00023889,6]
[366527835,1750305049753,-500.0,0.00023889,6]
[366527836,1750305049761,-500.0,0.00023889,6]
[366527837,1750305049770,-242.88190379,0.00023889,6]
[366527838,1750305049779,-500.0,0.00023889,6]
[366527839,1750305049788,-500.0,0.00023889,6]
[366527840,1750305049797,-1466.0,0.00023889,6]
[366527841,1750305049806,-500.0,0.00023889,6]
[366527842,1750305049815,-151.0,0.00023889,6]
[366527843,1750305049824,-500.0,0.00023889,6]
[366527844,1750305049833,-1574.35728235,0.00023899,2]
[366527845,1750305049842,-1249.0,0.000239,7]
[366527846,1750305049851,-1884.43,0.000239,2]
[366527847,1750305049859,-958.73565812,0.000239,2]
[366527848,1750305049868,-418919.69934395,0.00023915,4]
[366527849,1750305050096,-492.63,0.00021917,6]
[366527850,1750305050105,-460.0,0.00021917,6]
[366527851,1750305050115,-492.63,0.00022191,6]
[366527852,1750305050124,-492.63,0.00022465,6]
[366527853,1750305050133,-386.24,0.00022739,6]
[366527854,1750305050449,-455.83558186,0.00021917,6]
[366527855,1750305050459,-460.0,0.00021917,6]
[366527856,1750305050468,-460.0,0.00021917,6]
[366527857,1750305050477,-460.0,0.00021917,6]
[366527858,1750305050486,-460.0,0.00021917,6]
[366527859,1750305050495,-460.0,0.00021917,6]
[366527860,1750305050505,-460.0,0.00021917,6]
[366527861,1750305050514,-460.0,0.00021917,6]
[366527862,1750305050523,-394.65257834,0.00022191,6]
[366527863,1750305050532,-460.0,0.00022191,6]
[366527864,1750305050541,-460.0,0.00022191,6]
[366527865,1750305050551,-460.0,0.00022191,6]
[366527866,1750305050560,-58.0118398,0.00022465,6]
[366527867,1750305065720,150.0,0.0001874,2]
[366527868,1750305066498,201.18,0.00019633,2]
[366527869,1750305066997,301.77,0.00020525,2]
[366527870,1750305067542,402.36,0.00021418,2]
[366527871,1750305147658,150.0,0.00018362,2]
[366527872,1750305189763,167.801321,0.00013699,2]
[366527874,1750305231769,150.0,0.00018366,2]
[366527875,1750305319383,150.0,0.00018392,2]
[366527876,1750305401437,150.0,0.00018355,2]
[366527877,1750305487123,150.0,0.00018354,2]
[366527878,1750305571193,150.0,0.00018354,2]
[366527879,1750305655737,158.51,0.00018361,2]
[366527880,1750305738397,156.49,0.0001836,2]
[366527881,1750305822576,160.99,0.00018345,2]
[366527882,1750305883140,1540.99,0.000191,2]
[366527884,1750305904946,174.59,0.00018402,2]
[366527885,1750305991631,174.48,0.00018427,2]
[366527886,1750305995533,150.0,0.000189,2]
[366527888,1750306075304,177.58,0.00018428,2]
[366527889,1750306109080,10000.0,0.00022,30]
[366527890,1750306145130,-274.7329525,0.00019275,2]
[366527891,1750306145152,-220.4120475,0.00019306,2]